bitfinex-derivatives/quotes_BTCF0:USTF0_20210406
["timestamp","ask_amount","ask_price","bid_price","bid_amount"]
[1617684266815,3.66987334,58729.0,58724.0,0.50054223]
[1617684267014,3.65975655,58729.0,58728.0,0.27]
[1617684267219,3.65975655,58729.0,58725.0,0.50050572]
[1617684267412,0.10725655,58729.0,58725.0,0.50050572]
[1617684267616,0.10725655,58729.0,58726.0,0.27]
[1617684267819,0.10725655,58729.0,58725.0,0.50050572]
[1617684268013,3.451,58726.0,58724.0,0.50060185]
[1617684268213,3.56559,58726.0,58724.0,0.50060185]
[1617684268617,3.56559,58726.0,58725.0,0.27]
[1617684274125,0.11459,58726.0,58725.0,0.27]
[1617684274325,0.00510945,58728.0,58725.0,0.7709325]
[1617684274726,0.00510945,58728.0,58725.0,0.5009325]
[1617684274926,0.00510945,58728.0,58721.0,1.0]
[1617684274927,0.112366,58729.0,58726.0,0.50077043]
[1617684275126,0.112366,58729.0,58726.0,0.77077043]
[1617684275326,0.112366,58729.0,58726.0,0.50077043]
[1617684275626,0.112366,58729.0,58727.0,0.27]
[1617684276326,2.98560959,58728.0,58727.0,0.27]
[1617684276626,2.9805,58728.0,58727.0,0.27]
[1617684276826,2.9805,58728.0,58725.0,0.50087072]
[1617684277028,2.9805,58728.0,58726.0,0.27]
[1617684277327,2.9805,58728.0,58726.0,0.50085351]
[1617684277529,2.9805,58728.0,58724.0,0.50071872]
[1617684277728,2.9805,58728.0,58726.0,0.27]
[1617684277928,2.9805,58728.0,58724.0,0.50071872]
[1617684278128,2.9805,58728.0,58725.0,0.27]
[1617684278429,2.9805,58728.0,58724.0,0.50071872]
[1617684278929,2.9805,58728.0,58725.0,0.27]
[1617684281832,2.98560767,58728.0,58725.0,0.27]
[1617684282735,2.9805,58728.0,58725.0,0.27]
[1617684283536,2.98560769,58728.0,58725.0,0.27]
[1617684287344,0.00510876,58727.0,58725.0,0.27]
[1617684288045,2.98560876,58728.0,58725.0,0.27]
[1617684289545,0.00510886,58727.0,58725.0,0.27]
[1617684289948,0.00510886,58727.0,58723.0,0.50066366]
[1617684290347,0.00510886,58727.0,58724.0,0.27]
[1617684290547,0.00510886,58727.0,58723.0,0.50066366]
[1617684290949,0.00510886,58727.0,58724.0,0.27]
[1617684291349,2.98560836,58728.0,58724.0,0.27]
[1617684292250,2.98560836,58728.0,58724.0,0.77052516]
[1617684292652,2.98560836,58728.0,58723.0,0.50044494]
[1617684292950,2.98560836,58728.0,58725.0,0.27]
[1617684293151,2.98560836,58728.0,58724.0,0.50042942]
[1617684293351,2.98560836,58728.0,58724.0,0.77042942]
[1617684293551,2.98560836,58728.0,58724.0,0.50042942]
[1617684293953,2.98560836,58728.0,58725.0,0.27]
[1617684294354,0.00510968,58727.0,58725.0,0.27]
[1617684300867,0.00510459,58726.0,58725.0,0.27]
[1617684301264,0.00510459,58726.0,58723.0,0.50096141]
[1617684301265,3.30805655,58729.0,58722.0,0.27]
[1617684301465,3.30805655,58729.0,58722.0,0.39175]
[1617684301666,0.0051051,58726.0,58724.0,0.27]
[1617684301865,0.0051051,58726.0,58723.0,0.7710168]
[1617684302065,0.0051051,58726.0,58724.0,0.27]
[1617684302268,0.0101101,58727.0,58724.0,0.77101242]
[1617684302269,0.00510564,58727.0,58724.0,0.77101242]
[1617684302680,0.00510564,58727.0,58726.0,1.0]
[1617684303367,0.00510564,58727.0,58726.0,1.27]
[1617684304368,0.01011117,58728.0,58726.0,1.27]
[1617684304769,0.00510976,58732.0,58731.0,0.10725655]
[1617684305190,0.00510968,58734.0,58731.0,0.87775102]
[1617684305398,0.00510968,58734.0,58731.0,1.87775102]
[1617684305772,0.00510968,58734.0,58733.0,1.0]
[1617684305977,0.00511249,58735.0,58733.0,1.50049073]
[1617684306174,0.00511249,58735.0,58733.0,1.77049073]
[1617684306375,0.00511249,58735.0,58734.0,1.0]
[1617684306575,0.00511247,58736.0,58734.0,1.60077406]
[1617684306776,0.00511247,58736.0,58734.0,1.87077406]
[1617684307075,0.00511247,58736.0,58735.0,1.50026155]
[1617684307575,0.00511247,58736.0,58735.0,1.36045878]
[1617684307576,3.4439247,58736.0,58735.0,1.36045878]
[1617684307976,3.4439247,58736.0,58735.0,1.27]
[1617684308777,3.4439247,58736.0,58735.0,1.77035821]
[1617684309177,0.0101247,58736.0,58735.0,1.77035821]
[1617684309779,0.30084314,58736.0,58735.0,1.27]
[1617684310278,0.30084278,58737.0,58735.0,1.36046135]
[1617684310478,0.30084278,58737.0,58735.0,1.27]
[1617684310679,0.30084278,58737.0,58735.0,0.27]
[1617684310881,0.30084278,58737.0,58736.0,1.0]
[1617684311180,3.78264278,58737.0,58736.0,1.0]
[1617684311381,3.78264278,58737.0,58736.0,1.27]
[1617684312782,3.78264278,58737.0,58736.0,0.27]
[1617684313184,3.78264278,58737.0,58734.0,0.27]
[1617684313385,3.88623278,58737.0,58734.0,0.27]
[1617684313584,3.58539,58737.0,58736.0,0.27]
[1617684313784,3.58539,58737.0,58733.0,0.27]
[1617684314284,4.24727053,58737.0,58736.0,0.27]
[1617684314584,0.30086485,58734.0,58733.0,0.27]
[1617684314784,0.30086485,58734.0,58732.0,0.36046718]
[1617684314985,4.48851985,58737.0,58733.0,0.27]
[1617684315385,0.30085613,58734.0,58732.0,0.27]
[1617684315786,0.30085613,58734.0,58730.0,0.50075376]
[1617684315988,0.30110027,58733.0,58731.0,0.50143561]
[1617684316286,0.60254863,58734.0,58731.0,0.77143561]
[1617684316487,0.60254863,58734.0,58731.0,0.50143561]
[1617684316788,0.24125141,58736.0,58732.0,0.27]
[1617684317188,0.24125141,58736.0,58730.0,0.50160067]
[1617684317389,0.66241416,58733.0,58731.0,0.27]
[1617684317791,0.44155547,58735.0,58728.0,0.77168998]
[1617684317990,0.44155547,58735.0,58728.0,0.50168998]
[1617684318290,0.68284273,58736.0,58730.0,0.27]
[1617684318492,0.68284273,58736.0,58729.0,0.26]
[1617684318691,0.24125515,58734.0,58731.0,0.27]
[1617684318992,0.7694677,58732.0,58728.0,0.50168998]
[1617684319193,0.7694677,58732.0,58729.0,0.27]
[1617684319392,0.60252066,58731.0,58729.0,0.27]
[1617684319592,3.0661,58730.0,58729.0,0.27]
[1617684319792,3.72842936,58730.0,58729.0,0.27]
[1617684320295,3.96968601,58730.0,58729.0,0.27]
[1617684321299,3.96968601,58730.0,58727.0,0.50171474]
[1617684321699,3.96968601,58730.0,58728.0,0.27]
[1617684321900,0.60259999,58729.0,58727.0,0.50171474]
[1617684322300,0.60259999,58729.0,58728.0,0.27]
[1617684322600,0.90377135,58729.0,58728.0,0.27]
[1617684325404,0.90377135,58729.0,58726.0,0.50176922]
[1617684325704,0.90377135,58729.0,58727.0,0.27]
[1617684325905,0.90377135,58729.0,58726.0,0.50176922]
[1617684326205,0.30111525,58728.0,58727.0,0.27]
[1617684326607,0.66238368,58728.0,58727.0,0.27]
[1617684327005,3.46698368,58728.0,58727.0,0.27]
[1617684327505,3.46698368,58728.0,58724.0,0.50170241]
[1617684327506,3.7082552,58728.0,58724.0,0.50170241]
[1617684327705,3.7082552,58728.0,58725.0,0.27]
[1617684328016,0.36106384,58726.0,58723.0,0.50171279]
[1617684328318,0.36106384,58726.0,58725.0,0.27]
[1617684328708,0.36106384,58726.0,58723.0,0.50171279]
[1617684328908,0.10725655,58724.0,58723.0,0.50171279]
[1617684329309,0.40807702,58724.0,58723.0,0.77171279]
[1617684330910,0.56673702,58724.0,58723.0,0.77171279]
[1617684331611,3.46653702,58724.0,58723.0,0.77171279]
[1617684332011,3.46653702,58724.0,58723.0,0.27]
[1617684332511,3.46653702,58724.0,58722.0,0.501714]
[1617684332715,3.46653702,58724.0,58723.0,0.27]
[1617684334216,3.46653702,58724.0,58723.0,0.3706]
[1617684334517,3.46653702,58724.0,58723.0,0.87217797]
[1617684334917,3.47666187,58724.0,58723.0,0.87217797]
[1617684335117,3.1758414,58724.0,58723.0,0.87217797]
[1617684335318,3.1758414,58724.0,58723.0,1.87217797]
[1617684336720,3.16571655,58724.0,58723.0,1.3706]
[1617684337121,3.46655632,58724.0,58723.0,1.87217528]
[1617684337522,3.46655632,58724.0,58723.0,0.87217528]
[1617684338022,3.46655632,58724.0,58723.0,0.3706]
[1617684338223,3.46655632,58724.0,58723.0,0.27]
[1617684339024,3.46655632,58724.0,58720.0,0.50146968]
[1617684339224,3.46655632,58724.0,58721.0,0.27]
[1617684339425,3.46655632,58724.0,58720.0,0.50146968]
[1617684339625,0.30076696,58722.0,58720.0,0.50146968]
[1617684339825,0.30076696,58722.0,58721.0,0.27]
[1617684340727,0.01012334,58722.0,58721.0,0.77147139]
[1617684341127,0.3007398,58722.0,58720.0,0.50146738]
[1617684341327,0.4168698,58722.0,58720.0,0.50146738]
[1617684341629,0.11613,58722.0,58721.0,0.27]
[1617684341929,0.11613,58722.0,58720.0,0.50146738]
[1617684342134,0.11613,58722.0,58721.0,0.27]
[1617684342829,0.41670521,58722.0,58721.0,0.27]
[1617684343029,0.11613,58722.0,58721.0,0.27]
[1617684343229,0.41670498,58722.0,58721.0,0.27]
[1617684343430,0.11613,58722.0,58721.0,0.27]
[1617684343630,0.41668943,58722.0,58721.0,0.27]
[1617684345032,0.41668943,58722.0,58719.0,0.50139301]
[1617684345331,0.41668943,58722.0,58720.0,0.27]
[1617684345531,0.01010462,58721.0,58720.0,0.27]
[1617684345731,0.01010462,58721.0,58719.0,0.50139301]
[1617684345932,0.01010462,58721.0,58720.0,0.27]
[1617684349837,0.01010462,58721.0,58720.0,0.77138885]
[1617684350238,0.00509841,58721.0,58719.0,0.50124186]
[1617684350536,0.00509841,58721.0,58720.0,0.27]
[1617684350839,0.00509841,58721.0,58719.0,0.50124186]
[1617684351037,0.00509841,58721.0,58720.0,0.50124672]
[1617684351240,0.00509841,58721.0,58720.0,0.77124672]
[1617684351438,0.01009685,58722.0,58719.0,0.50124628]
[1617684351846,0.01009869,58721.0,58720.0,0.27]
[1617684352040,0.01009869,58721.0,58718.0,0.50125106]
[1617684352341,0.01009869,58721.0,58719.0,0.27]
[1617684355140,0.30006104,58722.0,58719.0,0.27]
[1617684355340,0.01008683,58721.0,58719.0,0.27]
[1617684356842,0.01008683,58721.0,58719.0,1.27]
[1617684357146,0.00508255,58721.0,58720.0,1.0]
[1617684357344,3.13678255,58721.0,58720.0,0.10515]
[1617684357542,3.13678255,58721.0,58720.0,0.37515]
[1617684359649,3.13678255,58721.0,58720.0,0.27]
[1617684360047,3.14176004,58721.0,58720.0,0.27]
[1617684360444,3.14176004,58721.0,58718.0,0.77124768]
[1617684360644,0.01006004,58721.0,58718.0,0.77124768]
[1617684360845,2.4605,58720.0,58719.0,0.27]
[1617684361045,2.46557738,58720.0,58718.0,0.50124768]
[1617684361345,2.46557738,58720.0,58719.0,0.27]
[1617684362249,2.46557738,58720.0,58718.0,0.27]
[1617684362648,2.46557738,58720.0,58719.0,0.27]
[1617684362847,2.4605,58720.0,58718.0,0.27]
[1617684363247,2.46557598,58720.0,58719.0,0.27]
[1617684363446,2.46557598,58720.0,58718.0,0.27]
[1617684363749,2.46557598,58720.0,58719.0,0.27]
[1617684364148,2.4605,58720.0,58718.0,0.27]
[1617684364349,2.4605,58720.0,58719.0,0.27]
[1617684364752,2.4605,58720.0,58718.0,0.27]
[1617684365152,2.46259051,58720.0,58719.0,0.27]
[1617684365352,2.46259051,58720.0,58718.0,0.7710836]
[1617684365755,2.46259051,58720.0,58719.0,0.27]
[1617684369762,2.46557725,58720.0,58719.0,0.27]
[1617684370060,2.46258946,58720.0,58719.0,0.27]
[1617684370460,2.4605,58720.0,58719.0,0.27]
[1617684370862,2.4605,58720.0,58719.0,1.27]
[1617684371062,2.4605,58720.0,58719.0,1.77116399]
[1617684371862,2.47058331,58720.0,58719.0,1.77116399]
[1617684372161,2.47058331,58720.0,58719.0,0.77116399]
[1617684372368,2.4605,58720.0,58719.0,0.77116399]
[1617684372767,2.47057541,58720.0,58719.0,0.77116399]
[1617684373666,2.4605,58720.0,58719.0,0.77116399]
[1617684374066,2.75958938,58720.0,58719.0,0.77116399]
[1617684374668,2.87498938,58720.0,58719.0,0.77116399]
[1617684376072,2.8746159,58720.0,58719.0,0.77116399]
[1617684377975,3.23313029,58720.0,58719.0,0.27]
[1617684378374,3.23313029,58720.0,58717.0,0.50199984]
[1617684378674,0.77300377,58720.0,58718.0,0.27]
[1617684378874,3.43260265,58719.0,58716.0,0.50201127]
[1617684379274,0.10725655,58717.0,58714.0,0.50175873]
[1617684379876,0.40580746,58717.0,58715.0,0.27]
[1617684380076,0.10725655,58717.0,58715.0,0.27]
[1617684380675,0.29849882,58716.0,58715.0,0.27]
[1617684381475,0.29849882,58716.0,58713.0,0.50175585]
[1617684381676,0.29849882,58716.0,58714.0,0.27]
[1617684382176,0.29849882,58716.0,58713.0,0.50175585]
[1617684382177,0.29844656,58715.0,58713.0,0.50175585]
[1617684382378,0.29844656,58715.0,58714.0,0.27]
[1617684382582,0.46537039,58717.0,58714.0,0.27]
[1617684382583,0.35828255,58716.0,58714.0,0.77202086]
[1617684383077,0.29858766,58715.0,58714.0,0.50202086]
[1617684383579,0.29858766,58715.0,58714.0,0.77202086]
[1617684384679,0.65690799,58715.0,58714.0,0.27]
[1617684385181,0.29858766,58715.0,58714.0,0.50201993]
[1617684385379,0.29858766,58715.0,58714.0,0.77201993]
[1617684385778,0.29858766,58715.0,58714.0,0.50201993]
[1617684385981,0.65679924,58715.0,58714.0,0.27]
[1617684386380,0.65679924,58715.0,58713.0,0.50202237]
[1617684386880,0.65679924,58715.0,58713.0,0.77202237]
[1617684386881,0.29849077,58714.0,58713.0,0.77202237]
[1617684387085,0.29849077,58714.0,58713.0,0.50202237]
[1617684387282,0.53979313,58714.0,58712.0,0.50202168]
[1617684387493,0.53979313,58714.0,58713.0,0.27]
[1617684387684,0.6566521,58714.0,58712.0,0.50202168]
[1617684388084,0.89795714,58714.0,58713.0,0.27]
[1617684388385,0.35816133,58714.0,58713.0,0.27]
[1617684388789,0.65679443,58714.0,58713.0,0.27]
[1617684389987,0.2986331,58714.0,58713.0,0.27]
[1617684390287,0.2986331,58714.0,58710.0,0.5016107]
[1617684390486,0.2986331,58714.0,58711.0,0.50161126]
[1617684390686,0.2986331,58714.0,58711.0,0.77161126]
[1617684390888,0.29842103,58713.0,58711.0,0.27]
[1617684391188,0.29842103,58713.0,58710.0,0.50161153]
[1617684391390,0.10725655,58711.0,58709.0,0.50161138]
[1617684391789,0.11729962,58711.0,58710.0,0.50161252]
[1617684391989,0.11729962,58711.0,58710.0,0.77161252]
[1617684392289,0.11729962,58711.0,58710.0,0.50161252]
[1617684392590,0.11729962,58711.0,58710.0,0.77161252]
[1617684393491,0.4055876,58711.0,58710.0,0.27]
[1617684393894,0.10725655,58711.0,58708.0,0.50163423]
[1617684394093,0.40543425,58711.0,58706.0,0.5016406]
[1617684394295,0.40543425,58711.0,58709.0,0.27]
[1617684394495,0.40543425,58711.0,58700.0,1.0]
[1617684394496,0.46492526,58711.0,58705.0,0.77164115]
[1617684394792,0.35756802,58710.0,58707.0,0.27]
[1617684394993,0.89687753,58710.0,58707.0,0.27]
[1617684395194,0.29804503,58708.0,58706.0,0.27]
[1617684395395,0.43367503,58708.0,58705.0,0.77163938]
[1617684395795,0.29809451,58707.0,58706.0,0.27]
[1617684396696,0.01003337,58707.0,58706.0,0.27]
[1617684397097,0.01003337,58707.0,58706.0,0.77163738]
[1617684397598,0.01003337,58707.0,58706.0,0.50163738]
[1617684397798,0.01003337,58707.0,58706.0,0.77163738]
[1617684398801,0.01003337,58707.0,58706.0,0.3205]
[1617684399003,0.13003337,58707.0,58706.0,0.3205]
[1617684399200,0.13003337,58707.0,58706.0,0.27]
[1617684400507,0.12,58707.0,58706.0,0.27]
[1617684401105,0.12505959,58707.0,58706.0,0.27]
[1617684401507,0.12505959,58707.0,58703.0,0.50113426]
[1617684401906,0.12505959,58707.0,58704.0,0.27]
[1617684402309,0.00208346,58706.0,58704.0,0.27]
[1617684403113,0.00208274,58705.0,58704.0,0.27]
[1617684403513,0.1123144,58705.0,58701.0,0.50114263]
[1617684403913,0.00208234,58704.0,58703.0,0.27]
[1617684404113,0.00208234,58704.0,58702.0,0.27]
[1617684405718,0.00208234,58704.0,58700.0,0.50112935]
[1617684405916,0.00208234,58704.0,58701.0,0.27]
[1617684406129,0.1123144,58705.0,58701.0,0.27]
[1617684406130,0.10933931,58705.0,58701.0,0.77113677]
[1617684406319,0.10933931,58705.0,58701.0,0.50113677]
[1617684406518,0.00208261,58704.0,58701.0,0.77113677]
[1617684406818,0.00208261,58704.0,58701.0,0.50113677]
[1617684407118,0.00208261,58704.0,58702.0,0.27]
[1617684407518,0.10725655,58705.0,58702.0,0.27]
[1617684407519,0.10933853,58705.0,58702.0,0.27]
[1617684408319,0.10725655,58705.0,58702.0,0.27]
[1617684408718,0.10725655,58705.0,58694.0,0.27]
[1617684408919,0.00208139,58704.0,58701.0,0.50113729]
[1617684409420,0.00208139,58704.0,58702.0,0.27]
[1617684410120,0.00208139,58704.0,58700.0,0.50113959]
[1617684410320,0.00208139,58704.0,58701.0,0.27]
[1617684410522,0.00208139,58704.0,58701.0,0.77113852]
[1617684410721,0.00208139,58704.0,58701.0,0.50113852]
[1617684410924,0.10933179,58705.0,58701.0,0.50113852]
[1617684411121,0.10933179,58705.0,58702.0,0.27]
[1617684411726,0.10725655,58705.0,58702.0,0.27]
[1617684412124,0.10725655,58705.0,58700.0,0.50090641]
[1617684412325,0.10725655,58705.0,58694.0,0.27]
[1617684412326,0.00206925,58704.0,58698.0,0.50091367]
[1617684412526,0.00206925,58704.0,58701.0,0.27]
[1617684412726,0.00206925,58704.0,58699.0,0.50091362]
[1617684413226,0.00206925,58704.0,58699.0,0.77091362]
[1617684413427,0.10932609,58705.0,58699.0,0.50091362]
[1617684413727,0.10932609,58705.0,58700.0,0.77090853]
[1617684414127,0.10932609,58705.0,58700.0,0.50090853]
[1617684414327,0.10725655,58705.0,58701.0,0.27]
[1617684416630,0.10932629,58705.0,58701.0,0.27]
[1617684419332,0.10932629,58705.0,58699.0,0.50098425]
[1617684419534,0.00206745,58704.0,58698.0,0.5009849]
[1617684419735,0.00206745,58704.0,58700.0,0.27]
[1617684420136,0.00206745,58704.0,58699.0,0.77098856]
[1617684420336,0.00206745,58704.0,58700.0,0.27]
[1617684420537,0.00206695,58703.0,58700.0,0.27]
[1617684420737,0.00206657,58702.0,58700.0,0.27]
[1617684420938,0.00206657,58702.0,58697.0,0.50099029]
[1617684421438,0.10725655,58699.0,58698.0,0.27]
[1617684421637,0.10725655,58699.0,58696.0,0.5009955]
[1617684421938,0.10725655,58699.0,58698.0,0.27]
[1617684422137,0.10725655,58699.0,58696.0,0.5009955]
[1617684422538,0.10725655,58699.0,58697.0,0.27]
[1617684422739,0.10725655,58699.0,58696.0,0.5009955]
[1617684423140,0.10725655,58699.0,58697.0,0.27]
[1617684427645,0.10725655,58699.0,58697.0,0.77076761]
[1617684428047,0.10725655,58699.0,58696.0,0.50076908]
[1617684428347,0.10725655,58699.0,58698.0,0.27]
[1617684428547,0.10725655,58699.0,58697.0,0.77119392]
[1617684428749,0.26192655,58699.0,58697.0,0.77119392]
[1617684428951,0.26192655,58699.0,58698.0,0.27]
[1617684429350,0.26192655,58699.0,58697.0,0.50120168]
[1617684429649,0.26192655,58699.0,58698.0,0.27]
[1617684430050,0.26192655,58699.0,58697.0,0.50120168]
[1617684430249,0.26192655,58699.0,58698.0,0.27]
[1617684431653,0.26192655,58699.0,58697.0,0.50120281]
[1617684431853,0.10725655,58699.0,58697.0,0.77120281]
[1617684432253,0.10725655,58699.0,58697.0,0.50120281]
[1617684432553,0.10725655,58699.0,58698.0,0.27]
[1617684433554,0.10725655,58699.0,58698.0,0.77119537]
[1617684433959,0.10725655,58699.0,58698.0,0.50119537]
[1617684434155,0.10725655,58699.0,58698.0,1.77119537]
[1617684436561,0.10725655,58699.0,58698.0,1.97119537]
[1617684439167,0.10725655,58699.0,58698.0,2.53304491]
[1617684439365,2.86335655,58699.0,58698.0,2.53304491]
[1617684440467,2.86335655,58699.0,58698.0,2.33304491]
[1617684441167,0.10725655,58699.0,58698.0,2.33304491]
[1617684441568,0.10725655,58699.0,58698.0,1.33304491]
[1617684445574,0.10725655,58699.0,58698.0,2.33304491]
[1617684447274,0.00206439,58707.0,58698.0,2.33304491]
[1617684447674,0.00206309,58708.0,58706.0,1.0]
[1617684447896,0.00206309,58708.0,58707.0,0.10725655]
[1617684448075,0.43236521,58719.0,58707.0,0.10725655]
[1617684448076,0.00206409,58711.0,58707.0,1.57725655]
[1617684448475,0.00206409,58711.0,58709.0,1.0]
[1617684448698,0.00206546,58715.0,58710.0,1.50158084]
[1617684448914,0.00206546,58715.0,58710.0,1.77158084]
[1617684449103,0.00206478,58718.0,58714.0,0.50125588]
[1617684449375,0.00206478,58718.0,58714.0,1.50125588]
[1617684449573,0.00206516,58719.0,58716.0,0.50126022]
[1617684449975,0.00501227,58719.0,58718.0,0.10725655]
[1617684450576,0.00992819,58719.0,58718.0,0.10725655]
[1617684450877,0.00501429,58719.0,58718.0,0.37725655]
[1617684451278,0.00992842,58719.0,58718.0,0.37725655]
[1617684451981,0.00992842,58719.0,58718.0,0.51613655]
[1617684454583,0.40225852,58720.0,58718.0,0.51613655]
[1617684454584,0.11718995,58720.0,58718.0,0.51613655]
[1617684454881,0.00993321,58719.0,58718.0,1.51613655]
[1617684455083,0.00993321,58719.0,58718.0,0.51613655]
[1617684455384,0.00993321,58719.0,58718.0,0.60662082]
[1617684456185,0.00993321,58719.0,58718.0,1.60662082]
[1617684456384,0.00501846,58719.0,58718.0,0.60662082]
[1617684456785,0.00501846,58719.0,58718.0,0.51613655]
[1617684457188,0.00206659,58719.0,58718.0,0.51613655]
[1617684459891,0.10932051,58720.0,58718.0,0.51613655]
[1617684460088,2.6124,58719.0,58718.0,0.51613655]
[1617684460689,2.61446363,58719.0,58718.0,0.51613655]
[1617684461091,2.6124,58719.0,58718.0,0.51613655]
[1617684462495,2.61446261,58719.0,58718.0,0.51613655]
[1617684463391,2.6124,58719.0,58718.0,0.51613655]
[1617684463691,2.61446264,58719.0,58718.0,0.51613655]
[1617684466595,2.61741735,58719.0,58718.0,0.51613655]
[1617684467597,2.61741735,58719.0,58718.0,0.37725655]
[1617684467797,2.62233821,58719.0,58718.0,0.37725655]
[1617684471598,2.90771532,58719.0,58718.0,0.37725655]
[1617684471999,2.6124,58719.0,58718.0,0.37725655]
[1617684472399,2.62234101,58719.0,58718.0,0.37725655]
[1617684476905,2.6124,58719.0,58718.0,0.37725655]
[1617684477808,2.61742026,58719.0,58718.0,0.37725655]
[1617684479809,2.62234449,58719.0,58718.0,0.37725655]
[1617684480209,2.6124,58719.0,58718.0,0.37725655]
[1617684480610,2.6174219,58719.0,58718.0,0.37725655]
[1617684481612,2.62234818,58719.0,58718.0,0.37725655]
[1617684482113,2.62234818,58719.0,58718.0,0.27]
[1617684482613,2.62234818,58719.0,58713.0,0.27]
[1617684482813,2.62234818,58719.0,58718.0,0.27]
[1617684483015,2.90830192,58719.0,58718.0,0.27]
[1617684483214,2.90830192,58719.0,58714.0,0.50165726]
[1617684483414,2.90830192,58719.0,58715.0,0.27]
[1617684483816,0.00995122,58716.0,58714.0,0.50165726]
[1617684484016,0.00995122,58716.0,58715.0,0.27]
[1617684484217,0.00995122,58716.0,58715.0,0.40992]
[1617684484916,0.00995122,58716.0,58715.0,0.91167059]
[1617684485118,0.00207018,58716.0,58715.0,0.91167059]
[1617684485519,0.00207028,58717.0,58715.0,0.91167059]
[1617684486017,0.00207028,58717.0,58716.0,1.7017334]
[1617684486217,0.00207028,58717.0,58716.0,1.80898995]
[1617684486421,0.00207067,58719.0,58716.0,2.16947058]
[1617684486920,0.00207067,58719.0,58718.0,0.50172189]
[1617684487220,0.00502878,58720.0,58718.0,1.77172189]
[1617684487221,0.00207076,58720.0,58718.0,1.77172189]
[1617684487620,0.00207076,58720.0,58719.0,1.50171882]
[1617684488023,0.00207076,58720.0,58719.0,1.77171882]
[1617684491226,0.00207162,58721.0,58719.0,1.77171882]
[1617684491726,0.00207162,58721.0,58720.0,0.50170378]
[1617684491926,0.00207162,58721.0,58720.0,1.50170378]
[1617684492128,0.00503051,58722.0,58720.0,1.86218072]
[1617684492527,0.00995965,58723.0,58721.0,1.50170651]
[1617684492827,0.00995965,58723.0,58722.0,1.0]
[1617684493027,0.00995965,58723.0,58722.0,1.77170207]
[1617684493926,0.29577585,58724.0,58722.0,1.77170207]
[1617684493927,0.00995814,58724.0,58722.0,1.77170207]
[1617684494127,0.00995814,58724.0,58723.0,0.10725655]
[1617684494328,0.00995814,58724.0,58723.0,1.60895563]
[1617684494528,0.00995814,58724.0,58723.0,1.87895563]
[1617684495229,0.00502618,58724.0,58723.0,1.37725655]
[1617684496329,0.00995397,58724.0,58723.0,1.37725655]
[1617684496629,0.00995401,58725.0,58723.0,1.46773266]
[1617684497030,0.00995624,58724.0,58723.0,0.37725655]
[1617684497531,0.00995627,58725.0,58723.0,0.37725655]
[1617684497731,0.00995627,58725.0,58723.0,1.37725655]
[1617684497930,0.00995627,58725.0,58723.0,0.37725655]
[1617684498149,0.29605335,58724.0,58723.0,0.87909341]
[1617684498546,0.00207268,58724.0,58723.0,0.37725655]
[1617684498735,0.00207268,58724.0,58723.0,1.37725655]
[1617684498935,0.00503365,58725.0,58723.0,1.37725655]
[1617684498936,0.0020726,58725.0,58723.0,1.87903469]
[1617684499334,0.0020726,58725.0,58724.0,1.0]
[1617684499534,0.00207309,58726.0,58724.0,1.50176841]
[1617684499834,0.00207309,58726.0,58724.0,1.77176841]
[1617684500135,0.00207309,58726.0,58725.0,1.50176972]
[1617684500434,3.4359,58726.0,58725.0,1.5922331]
[1617684500634,3.4359,58726.0,58725.0,1.8622331]
[1617684500834,3.44093604,58726.0,58725.0,1.77176972]
[1617684502535,3.7321764,58726.0,58725.0,1.77176972]
[1617684502935,3.44587325,58726.0,58725.0,1.77176972]
[1617684503336,3.44093772,58726.0,58725.0,1.77176972]
[1617684504239,3.44587149,58726.0,58725.0,1.77176972]
[1617684505236,0.00503604,58726.0,58725.0,1.77176972]
[1617684506439,0.00207133,58727.0,58725.0,1.77176972]
[1617684506939,0.00207133,58727.0,58726.0,0.50129764]
[1617684507138,0.00207133,58727.0,58726.0,1.50129764]
[1617684507349,0.00207128,58728.0,58726.0,1.86176158]
[1617684507542,0.00207045,58727.0,58726.0,1.86176158]
[1617684507740,0.00207045,58727.0,58726.0,0.77129764]
[1617684507939,0.00207045,58727.0,58726.0,1.77129764]
[1617684509043,0.11228611,58729.0,58726.0,1.77129764]
[1617684509044,0.00207045,58728.0,58726.0,1.77129764]
[1617684509543,0.00207045,58728.0,58726.0,0.77129764]
[1617684509743,0.10932779,58729.0,58727.0,1.50122036]
[1617684509942,0.10932779,58729.0,58727.0,1.61589036]
[1617684510142,0.10932779,58729.0,58728.0,1.27]
[1617684510343,0.10725655,58729.0,58728.0,1.77121831]
[1617684510644,0.1093279,58729.0,58728.0,1.27]
[1617684512547,0.10725655,58729.0,58728.0,1.77121436]
[1617684513647,0.10725655,58729.0,58728.0,1.27]
[1617684513846,0.10725655,58729.0,58728.0,1.86167898]
[1617684514349,0.10725655,58729.0,58728.0,1.77121543]
[1617684515850,0.10932698,58729.0,58728.0,1.77121543]
[1617684516350,0.10932698,58729.0,58728.0,1.27]
[1617684516650,0.10932698,58729.0,58728.0,1.36046414]
[1617684517049,0.10932698,58729.0,58728.0,1.27]
[1617684517452,0.10725655,58729.0,58728.0,1.27]
[1617684519954,0.10725655,58729.0,58728.0,0.27]
[1617684520354,0.10725655,58729.0,58728.0,1.27]
[1617684520554,0.10725655,58729.0,58728.0,0.27]
[1617684521054,0.10725655,58729.0,58728.0,1.27]
[1617684521454,0.10725655,58729.0,58728.0,0.27]
[1617684521755,0.10725655,58729.0,58728.0,1.27]
[1617684524559,3.60135655,58729.0,58728.0,0.27]
[1617684524858,3.60135655,58729.0,58728.0,1.27]
[1617684525261,3.60135655,58729.0,58727.0,0.27]
[1617684525460,3.60135655,58729.0,58723.0,0.10725655]
[1617684525461,3.60135655,58729.0,58728.0,0.27]
[1617684525761,3.60135655,58729.0,58723.0,0.10725655]
[1617684525762,0.00206872,58728.0,58727.0,0.27]
[1617684526161,0.00206872,58728.0,58726.0,0.27]
[1617684526464,0.00206872,58728.0,58723.0,0.60810764]
[1617684526466,0.00206872,58728.0,58727.0,0.27]
[1617684526468,0.00994595,58728.0,58727.0,0.27]
[1617684526664,0.29547201,58728.0,58727.0,0.27]
[1617684526965,0.29547201,58728.0,58724.0,1.0]
[1617684527165,0.29547201,58728.0,58727.0,1.0]
[1617684527365,0.29547201,58728.0,58727.0,1.27]
[1617684527664,0.00994588,58728.0,58727.0,1.0]
[1617684527869,0.00994588,58728.0,58727.0,1.27]